fUST/lending_fUST_20240909
["ID","MTS","AMOUNT","RATE_DAILY","PERIOD"]
[337568953,1725827441549,-9083.02,0.00050914,120]
[337568954,1725827441559,-1164.77,0.00050914,120]
[337568955,1725827441568,-1076.59,0.00050914,120]
[337568956,1725827441577,-1418.68,0.00050914,120]
[337568957,1725827441586,-795.13,0.00050914,120]
[337568958,1725827441595,-6601.24,0.00050914,120]
[337568959,1725827441605,-500.0,0.00050914,120]
[337568960,1725827441614,-5316.5,0.00050914,120]
[337568961,1725827441624,-1168.3,0.00050914,120]
[337568962,1725827441633,-1750.96,0.00050914,120]
[337568963,1725827441643,-500.0,0.00050915,120]
[337568964,1725827441652,-202.93245439,0.00050915,120]
[337568965,1725827441662,-550.27619162,0.00050915,120]
[337568966,1725827441671,-277.90032924,0.00050915,31]
[337568967,1725827441681,-273.88598151,0.00050915,120]
[337568968,1725827441692,-500.0,0.00050915,120]
[337568969,1725827441702,-500.0,0.00050915,120]
[337568970,1725827441711,-534.45890349,0.00050915,120]
[337568971,1725827441721,-500.0,0.00050915,120]
[337568972,1725827441732,-61434.8214972,0.00050916,6]
[337568973,1725827441743,-62907.0204886,0.00050916,6]
[337568974,1725827441754,-88888.0,0.00050926,120]
[337568975,1725827441764,-352.41273189,0.00050935,2]
[337568976,1725827441774,-1554.67093982,0.00051005,61]
[337568998,1725827443445,-626.64358753,0.00051005,61]
[337568999,1725827443454,-249.362758,0.00051005,120]
[337569000,1725827443463,-151.0,0.00051005,120]
[337569001,1725827443473,-7047.77877554,0.00051005,6]
[337569006,1725827446501,-242.0,0.00050912,2]
[337569007,1725827446511,-500.0,0.00050912,120]
[337569008,1725827446520,-2022.92,0.00050914,120]
[337569009,1725827446530,-3098.01,0.00050914,120]
[337569010,1725827446540,-63546.88041614,0.00051005,6]
[337569176,1725828117180,999.999999,0.00022,2]
[337569178,1725828412616,4534.98453107,0.00023,2]
[337569179,1725828433588,-550.0,0.00041045,30]
[337569180,1725828433612,-170.0,0.0004515,30]
[337569181,1725828433636,-965.21071636,0.00045915,120]
[337569182,1725828433661,-583.85701966,0.00045915,7]
[337569183,1725828433685,-965.21071636,0.00045915,120]
[337569184,1725828433710,-425.11656054,0.00045915,120]
[337569185,1725828433735,-583.85701966,0.00045915,7]
[337569186,1725828433758,-308.45638369,0.00045915,120]
[337569187,1725828433781,-965.21071636,0.00045915,120]
[337569188,1725828433805,-583.85701966,0.00045915,7]
[337569189,1725828433829,-965.21071636,0.00045915,120]
[337569190,1725828433853,-583.85701966,0.00045915,7]
[337569191,1725828433876,-965.21071636,0.00045915,120]
[337569192,1725828433901,-583.85701966,0.00045915,7]
[337569193,1725828433924,-965.21071636,0.00045915,120]
[337569194,1725828433948,-583.85701966,0.00045915,7]
[337569195,1725828433971,-965.21071636,0.00045915,120]
[337569196,1725828433993,-965.21071636,0.00045915,120]
[337569197,1725828434017,-965.21071636,0.00045915,120]
[337569198,1725828434041,-583.85701966,0.00045915,7]
[337569199,1725828434064,-965.21071636,0.00045915,120]
[337569200,1725828434086,-965.21071636,0.00045915,120]
[337569201,1725828434110,-583.85701966,0.00045915,7]
[337569202,1725828434134,-965.21071636,0.00045915,120]
[337569203,1725828434159,-583.85701966,0.00045915,7]
[337569204,1725828434182,-965.21071636,0.00045915,120]
[337569205,1725828434206,-583.85701966,0.00045915,7]
[337569206,1725828434230,-965.21071636,0.00045915,120]
[337569207,1725828434255,-583.85701966,0.00045915,7]
[337569208,1725828434278,-965.21071636,0.00045915,120]
[337569209,1725828434301,-583.85701966,0.00045915,7]
[337569210,1725828434324,-965.21071636,0.00045915,120]
[337569211,1725828434347,-965.21071636,0.00045915,120]
[337569212,1725828434370,-583.85701966,0.00045915,7]
[337569213,1725828434394,-965.21071636,0.00045915,120]
[337569214,1725828434418,-583.85701966,0.00045915,7]
[337569215,1725828434441,-965.21071636,0.00045915,120]
[337569216,1725828434466,-583.85701966,0.00045915,7]
[337569217,1725828434489,-965.21071636,0.00045915,120]
[337569218,1725828434514,-583.85701966,0.00045915,7]
[337569219,1725828434539,-965.21071636,0.00045915,120]
[337569220,1725828434564,-583.85701966,0.00045915,7]
[337569221,1725828434588,-965.21071636,0.00045915,120]
[337569222,1725828434794,-583.85701966,0.00045915,7]
[337569223,1725828434820,-965.21071636,0.00045915,120]
[337569224,1725828434844,-965.21071636,0.00045915,120]
[337569225,1725828434868,-965.21071636,0.00045915,120]
[337569226,1725828434892,-583.85701966,0.00045915,7]
[337569227,1725828434917,-583.85701966,0.00045915,7]
[337569228,1725828434941,-965.21071636,0.00045915,120]
[337569229,1725828434964,-965.21071636,0.00045915,120]
[337569230,1725828434988,-583.85701966,0.00045915,7]
[337569231,1725828435011,-965.21071636,0.00045915,120]
[337569232,1725828435036,-965.21071636,0.00045915,120]
[337569233,1725828435060,-583.85701966,0.00045915,7]
[337569234,1725828435084,-965.21071636,0.00045915,120]
[337569235,1725828435109,-583.85701966,0.00045915,7]
[337569236,1725828435132,-965.21071636,0.00045915,120]
[337569237,1725828435156,-965.21071636,0.00045915,120]
[337569238,1725828435180,-583.85701966,0.00045915,7]
[337569239,1725828435204,-965.21071636,0.00045915,120]
[337569240,1725828435230,-583.85701966,0.00045915,7]
[337569241,1725828435254,-965.21071636,0.00045915,120]
[337569242,1725828435277,-583.85701966,0.00045915,7]
[337569243,1725828435301,-965.21071636,0.00045915,120]
[337569244,1725828435325,-965.21071636,0.00045915,120]
[337569245,1725828435349,-583.85701966,0.00045915,7]
[337569246,1725828435372,-965.21071636,0.00045915,120]
[337569247,1725828435396,-965.21071636,0.00045915,120]
[337569248,1725828435419,-965.21071636,0.00045915,120]
[337569249,1725828435444,-583.85701966,0.00045915,7]
[337569250,1725828435467,-965.21071636,0.00045915,120]
[337569251,1725828435490,-583.85701966,0.00045915,7]
[337569252,1725828435514,-965.21071636,0.00045915,120]
[337569253,1725828435538,-583.85701966,0.00045915,7]
[337569254,1725828435561,-965.21071636,0.00045915,120]
[337569255,1725828435585,-583.85701966,0.00045915,7]
[337569256,1725828435609,-965.21071636,0.00045915,120]
[337569257,1725828435633,-583.85701966,0.00045915,7]
[337569258,1725828435657,-965.21071636,0.00045915,120]
[337569259,1725828435681,-583.85701966,0.00045915,7]
[337569260,1725828435704,-965.21071636,0.00045915,120]
[337569261,1725828435728,-583.85701966,0.00045915,7]
[337569262,1725828435752,-965.21071636,0.00045915,120]
[337569263,1725828435777,-583.85701966,0.00045915,7]
[337569264,1725828435801,-965.21071636,0.00045915,120]
[337569265,1725828435825,-583.85701966,0.00045915,7]
[337569266,1725828435848,-965.21071636,0.00045915,120]
[337569267,1725828435871,-965.21071636,0.00045915,120]
[337569268,1725828435895,-583.85701966,0.00045915,7]
[337569269,1725828435918,-965.21071636,0.00045915,120]
[337569270,1725828435942,-583.85701966,0.00045915,7]
[337569271,1725828435965,-965.21071636,0.00045915,120]
[337569272,1725828435989,-583.85701966,0.00045915,7]
[337569273,1725828436012,-965.21071636,0.00045915,120]
[337569274,1725828436035,-583.85701966,0.00045915,7]
[337569275,1725828436059,-965.21071636,0.00045915,120]
[337569276,1725828436083,-583.85701966,0.00045915,7]
[337569277,1725828436107,-583.85701966,0.00045915,7]
[337569278,1725828436130,-965.21071636,0.00045915,120]
[337569279,1725828436163,-965.21071636,0.00045915,120]
[337569280,1725828436187,-583.85701966,0.00045915,7]
[337569281,1725828436212,-965.21071636,0.00045915,120]
[337569282,1725828436236,-583.85701966,0.00045915,7]
[337569283,1725828436260,-965.21071636,0.00045915,120]
[337569284,1725828436285,-583.85701966,0.00045915,7]
[337569285,1725828436309,-965.21071636,0.00045915,120]
[337569286,1725828436334,-583.85701966,0.00045915,7]
[337569287,1725828436358,-965.21071636,0.00045915,120]
[337569288,1725828436383,-583.85701966,0.00045915,7]
[337569289,1725828436407,-965.21071636,0.00045915,120]
[337569290,1725828436432,-583.85701966,0.00045915,7]
[337569291,1725828436456,-965.21071636,0.00045915,120]
[337569292,1725828436480,-965.21071636,0.00045915,120]
[337569293,1725828436505,-583.85701966,0.00045915,7]
[337569294,1725828436529,-965.21071636,0.00045915,120]
[337569295,1725828436553,-583.85701966,0.00045915,7]
[337569296,1725828436578,-583.85701966,0.00045915,7]
[337569297,1725828436602,-965.21071636,0.00045915,120]
[337569298,1725828436626,-583.85701966,0.00045915,7]
[337569299,1725828436650,-965.21071636,0.00045915,120]
[337569300,1725828436674,-583.85701966,0.00045915,7]
[337569301,1725828436698,-965.21071636,0.00045915,120]
[337569302,1725828436724,-583.85701966,0.00045915,7]
[337569303,1725828436749,-965.21071636,0.00045915,120]
[337569304,1725828436774,-583.85701966,0.00045915,7]
[337569305,1725828436798,-965.21071636,0.00045915,120]
[337569306,1725828436822,-965.21071636,0.00045915,120]
[337569307,1725828436847,-583.85701966,0.00045915,7]
[337569308,1725828436872,-583.85701966,0.00045915,7]
[337569309,1725828436898,-965.21071636,0.00045915,120]
[337569310,1725828436923,-583.85701966,0.00045915,7]
[337569311,1725828436948,-583.85701966,0.00045915,7]
[337569312,1725828436973,-1356.05861916,0.00045915,7]
[337569313,1725828436998,-1356.05861916,0.00045915,7]
[337569314,1725828437023,-1356.05861916,0.00045915,7]
[337569315,1725828437048,-1356.05861916,0.00045915,7]
[337569316,1725828437073,-1356.05861916,0.00045915,7]
[337569317,1725828437097,-951.42199185,0.00045915,120]
[337569318,1725828437122,-1356.05861916,0.00045915,7]
[337569319,1725828437147,-951.42199185,0.00045915,120]
[337569320,1725828437173,-1356.05861916,0.00045915,7]
[337569321,1725828437197,-951.42199185,0.00045915,120]
[337569322,1725828437224,-1356.05861916,0.00045915,7]
[337569323,1725828437249,-951.42199185,0.00045915,120]
[337569324,1725828437276,-951.42199185,0.00045915,120]
[337569325,1725828437488,-1356.05861916,0.00045915,7]
[337569326,1725828437513,-951.42199185,0.00045915,120]
[337569327,1725828437540,-1356.05861916,0.00045915,7]
[337569328,1725828437564,-951.42199185,0.00045915,120]
[337569329,1725828437588,-1356.05861916,0.00045915,7]
[337569330,1725828437612,-951.42199185,0.00045915,120]
[337569331,1725828437636,-1356.05861916,0.00045915,7]
[337569332,1725828437660,-951.42199185,0.00045915,120]
[337569333,1725828437684,-1356.05861916,0.00045915,7]
[337569334,1725828437708,-1356.05861916,0.00045915,7]
[337569335,1725828437732,-951.42199185,0.00045915,120]
[337569336,1725828437757,-1356.05861916,0.00045915,7]
[337569337,1725828437781,-951.42199185,0.00045915,120]
[337569338,1725828437805,-1356.05861916,0.00045915,7]
[337569339,1725828437828,-951.42199185,0.00045915,120]
[337569340,1725828437852,-951.42199185,0.00045915,120]
[337569341,1725828437876,-1356.05861916,0.00045915,7]
[337569342,1725828437900,-951.42199185,0.00045915,120]
[337569343,1725828437924,-1356.05861916,0.00045915,7]
[337569344,1725828437948,-951.42199185,0.00045915,120]
[337569345,1725828437972,-1356.05861916,0.00045915,7]
[337569346,1725828437995,-951.42199185,0.00045915,120]
[337569347,1725828438019,-1356.05861916,0.00045915,7]
[337569348,1725828438043,-951.42199185,0.00045915,120]
[337569349,1725828438067,-1356.05861916,0.00045915,7]
[337569350,1725828438090,-951.42199185,0.00045915,120]
[337569351,1725828438115,-951.42199185,0.00045915,120]
[337569352,1725828438141,-1356.05861916,0.00045915,7]
[337569353,1725828438166,-951.42199185,0.00045915,120]
[337569354,1725828438191,-1356.05861916,0.00045915,7]
[337569355,1725828438216,-1356.05861916,0.00045915,7]
[337569356,1725828438241,-1356.05861916,0.00045915,7]
[337569357,1725828438265,-1356.05861916,0.00045915,7]
[337569358,1725828438290,-1356.05861916,0.00045915,7]
[337569359,1725828438315,-1356.05861916,0.00045915,7]
[337569360,1725828438339,-1406.28301243,0.00045915,7]
[337569361,1725828438364,-1406.28301243,0.00045915,7]
[337569362,1725828438389,-1406.28301243,0.00045915,7]
[337569363,1725828438413,-951.42199176,0.00045915,120]
[337569364,1725828438438,-1406.28301243,0.00045915,7]
[337569365,1725828438462,-202.93245439,0.00045917,120]
[337569366,1725828438502,-273.88598151,0.00045917,120]
[337569367,1725828438583,-550.27619162,0.00045917,120]
[337569368,1725828438712,-337.9682197,0.00045917,31]
[337569369,1725828438740,-500.0,0.00045917,120]
[337569370,1725828438766,-500.0,0.00045917,120]
[337569371,1725828438790,-500.0,0.00045917,120]
[337569372,1725828438814,-500.0,0.00045917,120]
[337569373,1725828438839,-500.0,0.00045917,120]
[337569374,1725828438863,-377.26685517,0.00045917,120]
[337569375,1725828438888,-294.49707017,0.00046,120]
[337569376,1725828438912,-277.96767628,0.00046,10]
[337569377,1725828438936,-201.30016825,0.00046,10]
[337569378,1725828438960,-151.0,0.00046016,120]
[337569379,1725828438984,-151.0,0.00046016,120]
[337569380,1725828439008,-151.0,0.00046016,120]
[337569381,1725828439031,-151.0,0.00046016,120]
[337569382,1725828439055,-253.538074,0.00046016,120]
[337569383,1725828439080,-193.552493,0.00046016,120]
[337569384,1725828439104,-151.0,0.00046016,120]
[337569385,1725828439129,-151.0,0.00046016,120]
[337569386,1725828439153,-151.0,0.00046016,120]
[337569387,1725828439177,-151.0,0.00046016,120]
[337569388,1725828439201,-151.0,0.00046016,120]
[337569389,1725828439226,-151.0,0.00046016,120]
[337569390,1725828439251,-151.0,0.00046016,14]
[337569391,1725828439275,-151.0,0.00046016,14]
[337569392,1725828439301,-28769.0251712,0.00046016,61]
[337569393,1725828439325,-22954.92015114,0.00046016,61]
[337569394,1725828439349,-151.0,0.00046026,120]
[337569395,1725828439374,-151.0,0.00046026,120]
[337569396,1725828439399,-151.0,0.00046026,120]
[337569397,1725828439427,-186.009885,0.00046026,120]
[337569398,1725828439452,-186.009885,0.00046026,120]
[337569399,1725828439477,-151.0,0.00046026,120]
[337569400,1725828439501,-151.0,0.00046026,120]
[337569401,1725828439525,-151.0,0.00046026,120]
[337569402,1725828439550,-151.0,0.00046026,30]
[337569403,1725828439574,-151.0,0.00046026,30]
[337569404,1725828439599,-151.0,0.00046026,120]
[337569405,1725828439622,-3641.35323435,0.00046027,120]
[337569406,1725828439646,-500.0,0.00046033,10]
[337569407,1725828439669,-500.0,0.00046073,10]
[337569408,1725828439693,-500.0,0.00046073,10]
[337569409,1725828439716,-500.0,0.000461,7]
[337569410,1725828439740,-500.53621081,0.000461,10]
[337569411,1725828439764,-170.64930892,0.000461,10]
[337569412,1725828439789,-349.25764419,0.00047442,10]
[337569413,1725828439813,-1408.05,0.00049315,120]
[337569414,1725828439839,-3868.35,0.00049315,120]
[337569415,1725828439864,-2123.13,0.00049315,120]
[337569416,1725828439888,-500.0,0.00049315,120]
[337569417,1725828439924,-9083.02,0.00049315,120]
[337569418,1725828439948,-1256.62,0.00049315,120]
[337569419,1725828439972,-500.0,0.00049315,120]
[337569420,1725828439995,-1164.77,0.00049315,120]
[337569421,1725828440019,-500.0,0.00049315,120]
[337569422,1725828440043,-536.41301738,0.00049315,120]
[337569423,1725828440066,-725.29,0.00049315,120]
[337569424,1725828440090,-1418.68,0.00049315,120]
[337569425,1725828440114,-500.0,0.00049315,120]
[337569426,1725828440137,-1076.59,0.00049315,120]
[337569427,1725828440161,-500.0,0.00049315,120]
[337569428,1725828440185,-795.13,0.00049315,120]
[337569429,1725828440384,-500.0,0.00049315,120]
[337569430,1725828440410,-500.0,0.00049315,120]
[337569431,1725828440434,-500.0,0.00049315,120]
[337569432,1725828440458,-500.0,0.00049315,120]
[337569433,1725828440482,-500.0,0.00049315,120]
[337569434,1725828440506,-500.0,0.00049315,120]
[337569435,1725828440529,-500.0,0.00049315,120]
[337569436,1725828440553,-500.0,0.00049315,120]
[337569437,1725828440578,-6601.24,0.00049315,120]
[337569438,1725828440602,-500.0,0.00049315,120]
[337569439,1725828440626,-1168.3,0.00049315,120]
[337569440,1725828440651,-3765.85,0.00049315,120]
[337569441,1725828440676,-500.0,0.00049315,120]
[337569442,1725828440700,-500.0,0.00049315,120]
[337569443,1725828440724,-296.71,0.00049315,120]
[337569444,1725828440748,-500.0,0.00049315,120]
[337569445,1725828440772,-1750.96,0.00049315,120]
[337569446,1725828440797,-500.0,0.00049315,120]
[337569447,1725828440820,-500.0,0.00049315,120]
[337569448,1725828440844,-167.24444464,0.00049315,120]
[337569449,1725828440867,-500.0,0.00049315,120]
[337569450,1725828440891,-2968.93,0.00049315,120]
[337569451,1725828440916,-500.0,0.00049315,120]
[337569452,1725828440940,-500.0,0.00049315,120]
[337569453,1725828440965,-500.0,0.00049315,120]
[337569454,1725828440989,-570.63412272,0.00049315,120]
[337569455,1725828441013,-500.0,0.00049315,120]
[337569456,1725828441038,-1938.63,0.00049315,120]
[337569457,1725828441063,-502.39346316,0.00049315,120]
[337569458,1725828441089,-3957.67,0.00049315,120]
[337569459,1725828441113,-538.15,0.00049315,120]
[337569460,1725828441137,-500.0,0.00049315,120]
[337569461,1725828441162,-2330.21,0.00049315,120]
[337569462,1725828441186,-1408.05,0.00049589,120]
[337569463,1725828441211,-1646.51581307,0.00049589,120]
[337569464,1725828450991,-151.0,0.00046016,120]
[337569465,1725828451016,-151.0,0.00046016,120]
[337569466,1725828451041,-151.0,0.00046016,120]
[337569467,1725828451065,-151.0,0.00046016,120]
[337569468,1725828451091,-14384.51258561,0.00046016,61]
[337569469,1725828451116,-164.333267,0.00046026,120]
[337569470,1725828451140,-164.333267,0.00046026,120]
[337569471,1725828451165,-500.0,0.00049315,120]
[337569472,1725828451189,-500.0,0.00049315,120]
[337569473,1725828451213,-500.0,0.00049315,120]
[337569474,1725828451238,-1973.4,0.00049315,120]
[337569475,1725828451263,-500.0,0.00049315,120]
[337569476,1725828451286,-271.16798836,0.00049315,120]
[337569477,1725828451310,-500.0,0.00049315,120]
[337569478,1725828451334,-522.02,0.00049315,120]
[337569479,1725828451361,-2221.83418693,0.00049589,120]
[337569480,1725828451386,-2123.13,0.00049589,120]
[337569481,1725828451412,-500.0,0.00049589,120]
[337569482,1725828451438,-9083.02,0.00049589,120]
[337569483,1725828451462,-1256.62,0.00049589,120]
[337569484,1725828451486,-1164.77,0.00049589,120]
[337569485,1725828451510,-500.0,0.00049589,120]
[337569486,1725828451533,-725.29,0.00049589,120]
[337569487,1725828451557,-1418.68,0.00049589,120]
[337569488,1725828451581,-500.0,0.00049589,120]
[337569489,1725828451605,-1076.59,0.00049589,120]
[337569490,1725828451629,-500.0,0.00049589,120]
[337569491,1725828451653,-795.13,0.00049589,120]
[337569492,1725828451681,-527.84119167,0.00049589,120]
[337569493,1725828451706,-500.0,0.00049589,120]
[337569494,1725828451730,-500.0,0.00049589,120]
[337569495,1725828451755,-500.0,0.00049589,120]
[337569496,1725828451779,-500.0,0.00049589,120]
[337569497,1725828451804,-500.0,0.00049589,120]
[337569498,1725828451828,-500.0,0.00049589,120]
[337569499,1725828451853,-6601.24,0.00049589,120]
[337569500,1725828451877,-1168.3,0.00049589,120]
[337569501,1725828451902,-469.74183836,0.00049589,120]
[337569502,1725828451928,-3765.85,0.00049589,120]
[337569503,1725828451951,-500.0,0.00049589,120]
[337569504,1725828451975,-500.0,0.00049589,120]
[337569505,1725828452000,-296.71,0.00049589,120]
[337569506,1725828452024,-500.0,0.00049589,120]
[337569507,1725828452047,-1750.96,0.00049589,120]
[337569508,1725828452071,-500.0,0.00049589,120]
[337569509,1725828452287,-500.0,0.00049589,120]
[337569510,1725828452315,-2968.93,0.00049589,120]
[337569511,1725828452341,-151.0,0.00049589,120]
[337569512,1725828452365,-500.0,0.00049589,120]
[337569513,1725828452389,-500.0,0.00049589,120]
[337569514,1725828452414,-500.0,0.00049589,120]
[337569515,1725828452438,-215.21938835,0.00049589,120]
[337569516,1725828452463,-1938.63,0.00049589,120]
[337569517,1725828452487,-3957.67,0.00049589,120]
[337569518,1725828452511,-538.15,0.00049589,120]
[337569519,1725828452535,-151.0,0.00049589,120]
[337569520,1725828452559,-500.0,0.00049589,120]
[337569521,1725828452583,-2330.21,0.00049589,120]
[337569522,1725828452607,-151.0,0.00049589,14]
[337569523,1725828452630,-151.0,0.00049589,120]
[337569524,1725828452653,-500.0,0.00049589,120]
[337569525,1725828452679,-500.0,0.00049589,120]
[337569526,1725828452702,-151.0,0.00049589,120]
[337569527,1725828452726,-500.0,0.00049589,120]
[337569528,1725828452751,-1973.4,0.00049589,120]
[337569529,1725828452775,-500.0,0.00049589,120]
[337569530,1725828452800,-522.02,0.00049589,120]
[337569531,1725828452824,-1408.05,0.00049863,120]
[337569532,1725828452850,-3868.35,0.00049863,120]
[337569533,1725828452875,-2123.13,0.00049863,120]
[337569534,1725828452899,-500.0,0.00049863,120]
[337569535,1725828452927,-9083.02,0.00049863,120]
[337569536,1725828452950,-1256.62,0.00049863,120]
[337569537,1725828452974,-1164.77,0.00049863,120]
[337569538,1725828452997,-500.0,0.00049863,120]
[337569539,1725828453023,-725.29,0.00049863,120]
[337569540,1725828453048,-1418.68,0.00049863,120]
[337569541,1725828453074,-500.0,0.00049863,120]
[337569542,1725828453100,-1076.59,0.00049863,120]
[337569543,1725828453125,-500.0,0.00049863,120]
[337569544,1725828453150,-795.13,0.00049863,120]
[337569545,1725828453175,-500.0,0.00049863,120]
[337569546,1725828453198,-500.0,0.00049863,120]
[337569547,1725828453222,-500.0,0.00049863,120]
[337569548,1725828453246,-500.0,0.00049863,120]
[337569549,1725828453272,-500.0,0.00049863,120]
[337569550,1725828453297,-430.34406748,0.00049863,120]
[337569551,1725828453322,-6601.24,0.00049863,120]
[337569552,1725828453347,-1168.3,0.00049863,120]
[337569553,1725828453372,-3765.85,0.00049863,120]
[337569554,1725828453397,-635.91493719,0.00049863,120]
[337569555,1725828453423,-500.0,0.00049863,120]
[337569556,1725828453447,-296.71,0.00049863,120]
[337569557,1725828453471,-599.65816623,0.00049863,120]
[337569558,1725828453496,-1750.96,0.00049863,120]
[337569559,1725828453521,-506.21940367,0.00049863,120]
[337569560,1725828453545,-500.0,0.00049863,120]
[337569561,1725828453571,-2968.93,0.00049863,120]
[337569562,1725828453595,-500.0,0.00049863,120]
[337569563,1725828453621,-500.0,0.00049863,120]
[337569564,1725828453647,-500.0,0.00049863,120]
[337569565,1725828453674,-1938.63,0.00049863,120]
[337569566,1725828453699,-3957.67,0.00049863,120]
[337569567,1725828453724,-538.15,0.00049863,120]
[337569568,1725828453749,-500.0,0.00049863,120]
[337569569,1725828453774,-2330.21,0.00049863,120]
[337569570,1725828453799,-500.0,0.00049863,120]
[337569571,1725828453824,-500.0,0.00049863,120]
[337569572,1725828453849,-1973.4,0.00049863,120]
[337569573,1725828453872,-500.0,0.00049863,120]
[337569574,1725828453896,-500.0,0.00049863,120]
[337569575,1725828453920,-522.02,0.00049863,120]
[337569576,1725828453946,-1408.05,0.00050136,120]
[337569577,1725828453972,-3868.35,0.00050136,120]
[337569578,1725828453998,-2123.13,0.00050136,120]
[337569579,1725828454022,-500.0,0.00050136,120]
[337569580,1725828454048,-9083.02,0.00050136,120]
[337569581,1725828454073,-1256.62,0.00050136,120]
[337569582,1725828454097,-1164.77,0.00050136,120]
[337569583,1725828454121,-500.0,0.00050136,120]
[337569584,1725828454146,-725.29,0.00050136,120]
[337569585,1725828454171,-1418.68,0.00050136,120]
[337569586,1725828454195,-500.0,0.00050136,120]
[337569587,1725828454220,-1076.59,0.00050136,120]
[337569588,1725828454245,-500.0,0.00050136,120]
[337569589,1725828454273,-795.13,0.00050136,120]
[337569590,1725828454297,-500.0,0.00050136,120]
[337569591,1725828454322,-500.0,0.00050136,120]
[337569592,1725828454346,-500.0,0.00050136,120]
[337569593,1725828454371,-500.0,0.00050136,120]
[337569594,1725828454395,-500.0,0.00050136,120]
[337569595,1725828454419,-6601.24,0.00050136,120]
[337569596,1725828454443,-1168.3,0.00050136,120]
[337569597,1725828454469,-151.0,0.00050136,120]
[337569598,1725828454497,-3765.85,0.00050136,120]
[337569599,1725828454521,-500.0,0.00050136,120]
[337569600,1725828454544,-296.71,0.00050136,120]
[337569601,1725828454569,-1750.96,0.00050136,120]
[337569602,1725828454594,-500.0,0.00050136,120]
[337569603,1725828454618,-2968.93,0.00050136,120]
[337569604,1725828454642,-151.0,0.00050136,120]
[337569605,1725828454667,-500.0,0.00050136,120]
[337569606,1725828454692,-500.0,0.00050136,120]
[337569607,1725828454717,-442.98740398,0.00050136,120]
[337569608,1725828454927,-1938.63,0.00050136,120]
[337569609,1725828454952,-538.15,0.00050136,120]
[337569610,1725828454978,-3957.67,0.00050136,120]
[337569611,1725828455004,-151.0,0.00050136,120]
[337569612,1725828455028,-500.0,0.00050136,120]
[337569613,1725828455053,-2330.21,0.00050136,120]
[337569614,1725828455077,-151.0,0.00050136,14]
[337569615,1725828455101,-151.0,0.00050136,120]
[337569616,1725828455125,-500.0,0.00050136,120]
[337569617,1725828455150,-500.0,0.00050136,120]
[337569618,1725828455175,-151.0,0.00050136,120]
[337569619,1725828455198,-500.0,0.00050136,120]
[337569620,1725828455223,-1973.4,0.00050136,120]
[337569621,1725828455247,-500.0,0.00050136,120]
[337569622,1725828455272,-522.02,0.00050136,120]
[337569623,1725828455297,-1408.05,0.0005041,120]
[337569624,1725828455322,-3868.35,0.0005041,120]
[337569625,1725828455348,-2123.13,0.0005041,120]
[337569626,1725828455374,-500.0,0.0005041,120]
[337569627,1725828455401,-9083.02,0.0005041,120]
[337569628,1725828455426,-1256.62,0.0005041,120]
[337569629,1725828455452,-1164.77,0.0005041,120]
[337569630,1725828455476,-500.0,0.0005041,120]
[337569631,1725828455501,-725.29,0.0005041,120]
[337569632,1725828455526,-1418.68,0.0005041,120]
[337569633,1725828455551,-533.3246618,0.0005041,120]
[337569634,1725828455576,-1076.59,0.0005041,120]
[337569635,1725828455602,-500.0,0.0005041,120]
[337569636,1725828455629,-795.13,0.0005041,120]
[337569637,1725828455655,-500.0,0.0005041,120]
[337569638,1725828455679,-587.32042462,0.0005041,120]
[337569639,1725828455705,-500.0,0.0005041,120]
[337569640,1725828455730,-500.0,0.0005041,120]
[337569641,1725828455754,-500.0,0.0005041,120]
[337569642,1725828455778,-6601.24,0.0005041,120]
[337569643,1725828455802,-1168.3,0.0005041,120]